bitfinex/quotes_ETHUSD_20240902
["timestamp","ask_amount","ask_price","bid_price","bid_amount"]
[1725311174541,3.0,2561.5,2561.4,0.04545746]
[1725311174766,3.0,2561.9,2561.1,0.125074]
[1725311174935,3.12301,2561.7,2561.4,0.04545746]
[1725311175130,3.12301,2561.7,2561.1,0.125074]
[1725311175131,3.0,2561.6,2561.1,0.125074]
[1725311175353,6.24608,2561.6,2561.5,0.04536131]
[1725311175548,6.24706,2561.2,2561.1,0.125074]
[1725311175792,3.748236,2561.2,2561.1,0.125074]
[1725311176094,19.757358,2561.2,2561.1,0.16959059]
[1725311176394,30.16038056,2561.2,2561.1,0.16959059]
[1725311176688,32.672596,2561.2,2561.1,0.125074]
[1725311177255,29.549066,2561.2,2561.1,0.125074]
[1725311177756,26.289266,2561.2,2561.1,0.125074]
[1725311178306,29.412796,2561.2,2561.1,0.125074]
[1725311178590,32.475196,2561.2,2561.1,0.125074]
[1725311179299,32.475196,2561.2,2561.1,4e-06]
[1725311179519,36.55741458,2561.2,2561.1,4e-06]
[1725311179853,3.1255,2559.6,2559.4,3.2354]
[1725311180054,3.12575,2559.4,2558.7,3.2354]
[1725311180255,3.12575,2559.4,2558.8,0.32354]
[1725311180508,3.0,2559.3,2558.8,0.32354]
[1725311180802,3.0,2559.3,2558.7,3.2354]
[1725311181019,3.12586,2559.3,2558.7,3.2354]
[1725311181487,3.12599,2559.2,2558.7,3.2354]
[1725311181798,3.12586,2559.3,2558.7,3.2354]
[1725311181799,3.1261,2559.1,2558.7,3.2354]
[1725311181951,3.0,2559.5,2558.7,3.2354]
[1725311181952,6.12563,2559.5,2558.7,3.2354]
[1725311182151,0.55,2559.4,2558.7,3.5714474]
[1725311182368,3.67573,2559.4,2558.7,3.5714474]
[1725311182591,3.0,2559.3,2558.7,6.6979774]
[1725311182817,3.0,2559.4,2558.8,0.98246374]
[1725311183323,3.0,2559.4,2558.7,3.5714474]
[1725311183619,3.0,2559.4,2558.7,3.2354]
[1725311183832,6.12575,2559.4,2558.7,3.2354]
[1725311183987,3.0,2559.4,2558.7,3.2354]
[1725311184408,6.12502,2560.0,2558.7,3.2354]
[1725311184731,3.1254,2559.7,2558.7,3.8841084]
[1725311184906,3.12569,2559.5,2558.7,3.8841084]
[1725311185220,3.12569,2559.5,2558.7,3.2354]
[1725311185221,6.12582,2559.4,2558.7,3.2354]
[1725311185727,3.12586,2559.3,2558.7,3.2354]
[1725311185879,3.67586,2559.3,2558.7,3.2354]
[1725311186075,3.1261,2559.1,2558.7,3.2354]
[1725311186314,6.25229,2559.1,2558.7,3.2354]
[1725311186578,3.1261,2559.1,2558.7,3.2354]
[1725311186734,3.1261,2559.1,2558.5,0.125074]
[1725311187301,3.12622,2559.0,2558.5,0.125074]
[1725311187612,6.12635,2558.9,2558.5,0.125074]
[1725311187914,6.12635,2558.9,2558.6,0.04441865]
[1725311188494,3.12646,2558.8,2558.6,0.04441865]
[1725311188686,3.0,2558.7,2558.6,0.04441865]
[1725311189198,12.841133,2558.7,2558.6,0.04441865]
[1725311189453,12.841133,2558.7,2555.9,0.125074]
[1725311189454,0.16949265,2558.2,2555.9,0.125074]
[1725311189741,3.12725,2558.2,2555.9,0.125074]
[1725311189893,3.12775,2557.8,2556.8,3.12882]
[1725311190093,3.0,2557.7,2556.8,3.12882]
[1725311190299,3.12801,2557.6,2556.6,3.12905]
[1725311190499,3.12801,2557.6,2555.9,1.29279822]
[1725311190500,3.0,2557.5,2556.7,3.441855]
[1725311190802,3.0,2557.5,2555.9,1.29279822]
[1725311190803,3.12728,2558.2,2557.1,3.12852]
[1725311191055,3.12747,2558.0,2557.1,3.12852]
[1725311191354,0.55,2558.1,2556.7,3.12895]
[1725311191355,3.12788,2557.7,2556.7,3.12895]
[1725311191502,3.55,2558.1,2556.8,0.0782135]
[1725311191503,3.1275,2558.0,2556.8,0.0782135]
[1725311191705,3.1275,2558.0,2556.8,3.1289]
[1725311191706,3.0,2557.6,2556.8,3.1289]
[1725311191930,0.36775,2558.0,2556.9,3.12873]
[1725311191931,3.12775,2557.8,2556.9,3.12873]
[1725311192126,3.0,2557.7,2556.9,3.12873]
[1725311192328,3.0,2557.7,2555.9,3.255064]
[1725311192517,3.1281,2557.5,2556.2,6.7442]
[1725311192729,3.1281,2557.5,2556.7,6.7442]
[1725311192932,3.0,2557.4,2556.7,6.7442]
[1725311193106,3.12831,2557.3,2556.7,6.7442]
[1725311193306,3.0,2557.2,2556.7,6.7442]
[1725311193842,0.612775,2557.6,2556.7,6.7442]
[1725311193843,3.12835,2557.3,2556.7,6.7442]
[1725311194090,6.12844,2557.2,2556.7,6.7442]
[1725311194260,3.0,2557.2,2556.7,6.7442]
[1725311194608,3.0,2557.3,2556.7,6.7442]
[1725311194849,3.0,2557.3,2556.7,7.41862]
[1725311195647,3.0,2557.3,2556.7,6.7442]
[1725311195818,6.12834,2557.3,2556.7,6.7442]
[1725311196332,3.12842,2557.2,2556.7,6.7442]
[1725311196516,3.0,2557.1,2556.7,6.7442]
[1725311196924,3.0,2557.3,2556.8,0.04311912]
[1725311197235,3.0,2557.3,2556.8,0.72185103]
[1725311197418,6.25599,2557.6,2556.8,3.80754191]
[1725311197621,6.12806,2557.5,2556.9,0.04417282]
[1725311198620,3.12817,2557.4,2556.9,0.04417282]
[1725311198823,3.0,2557.3,2556.9,0.04417282]
[1725311199340,6.12818,2557.4,2556.9,0.04417282]
[1725311199556,3.12866,2557.0,2556.9,0.04417282]
[1725311199728,3.1291,2556.7,2556.0,6.7919]
[1725311200049,3.12923,2556.6,2556.0,7.7965954]
[1725311200245,3.0,2556.6,2555.9,0.125074]
[1725311200466,3.12948,2556.4,2555.9,0.125074]
[1725311200607,3.12929,2556.5,2555.9,0.125074]
[1725311201023,3.12921,2556.6,2555.9,0.125074]
[1725311201251,3.0,2556.5,2555.9,0.125074]
[1725311201680,6.12928,2556.5,2555.9,0.125074]
[1725311202246,3.0,2556.5,2555.9,0.125074]
[1725311202580,3.0,2556.5,2555.9,3.255074]
[1725311202883,3.0,2556.5,2556.0,0.04443991]
[1725311203447,6.742201,2556.5,2556.0,0.04443991]
[1725311203842,3.1294,2556.4,2556.0,0.04443991]
[1725311204641,6.25888,2556.4,2556.0,0.04443991]
[1725311204840,0.312871,2556.9,2556.0,6.91458497]
[1725311205204,3.12653,2558.8,2556.6,3.12908]
[1725311205205,6.25649,2557.4,2556.6,3.12908]
[1725311205373,3.12824,2557.4,2556.7,6.7919]
[1725311205563,3.12831,2557.3,2556.7,6.83566416]
[1725311205976,3.12842,2557.2,2556.7,6.83566416]
[1725311206183,3.12856,2557.1,2556.7,6.83566416]
[1725311206382,3.12879,2556.9,2556.7,0.04376416]
[1725311206599,3.12891,2556.8,2556.7,0.04376416]
[1725311206789,3.12891,2556.8,2555.9,3.255054]
[1725311206790,3.12903,2556.7,2556.0,6.8631]
[1725311206953,3.12891,2556.8,2556.1,3.12969]
[1725311207295,3.0,2557.1,2556.2,6.9413373]
[1725311207601,3.12824,2557.4,2556.2,6.8631]
[1725311207602,3.12885,2556.9,2556.2,6.8631]
[1725311207751,3.741735,2556.9,2556.2,6.8631]
[1725311207957,3.0,2557.0,2556.3,3.1295]
[1725311208157,3.12879,2556.9,2556.2,6.8631]
[1725311208697,3.12879,2556.9,2556.2,9.99266]
[1725311208911,3.0,2557.0,2556.3,6.25894]
[1725311209123,3.0,2557.0,2556.3,3.12944]
[1725311209293,3.0,2557.0,2556.2,7.862366]
[1725311209503,0.312784,2557.6,2556.5,3.12925]
[1725311209663,3.12818,2557.4,2556.5,3.12925]
[1725311209864,3.12874,2557.0,2556.3,3.12948]
[1725311210063,3.0,2556.9,2556.3,3.12948]
[1725311210808,3.0,2556.9,2556.2,7.862366]
[1725311210962,3.0,2557.1,2556.4,0.07823314]
[1725311211162,3.0,2557.1,2556.5,3.12927]
[1725311212414,3.12874,2557.0,2556.2,9.99265]
[1725311212560,0.312784,2557.6,2556.3,0.07822821]
[1725311212561,3.0,2556.9,2556.3,0.07822821]
[1725311212762,3.0,2557.2,2556.6,3.12908]
[1725311213006,3.12797,2557.6,2557.0,3.12862]
[1725311213260,3.12797,2557.6,2556.8,9.94732]
[1725311214070,3.12819,2557.4,2556.8,6.8185]
[1725311214595,3.12853,2557.2,2556.5,6.8185]
[1725311214767,3.12853,2557.2,2556.5,9.94777]
[1725311214967,3.12848,2557.2,2556.5,9.94777]
[1725311215168,6.25698,2557.2,2556.5,9.94777]
[1725311215366,3.12857,2557.1,2556.5,6.8185]
[1725311215667,3.12857,2557.1,2556.5,9.94777]
[1725311215864,3.12857,2557.1,2556.5,6.8185]
[1725311216518,6.12877,2557.0,2556.5,6.8185]
[1725311216700,3.12885,2556.9,2556.5,6.8185]
[1725311217117,3.12764,2557.9,2556.9,3.12876]
[1725311217422,6.903161,2558.6,2557.5,6.7177]
[1725311217565,3.12736,2558.1,2557.5,6.7177]
[1725311217905,3.12745,2558.0,2557.6,0.04313828]
[1725311218114,3.1277,2557.8,2557.6,0.04313828]
[1725311218280,3.12748,2558.0,2557.6,0.04313828]
[1725311218488,3.12777,2557.8,2557.0,9.84629]
[1725311218797,3.12777,2557.8,2557.1,3.12847]
[1725311218967,3.12777,2557.8,2557.1,3.17209058]
[1725311218968,3.0,2557.7,2557.1,3.17209058]
[1725311219163,3.0,2557.7,2557.1,0.04362058]
[1725311219364,3.0,2558.1,2557.5,3.12798]
[1725311219593,3.312726,2558.1,2557.5,3.12798]
[1725311219873,3.312726,2558.1,2557.6,0.04313828]
[1725311220182,0.312726,2558.1,2557.7,3.12774]
[1725311220465,0.312726,2558.1,2557.7,3.17078184]
[1725311220625,3.12708,2558.3,2557.7,3.17078184]
[1725311220806,3.12708,2558.3,2557.7,0.04304184]
[1725311221127,3.12768,2557.8,2557.7,0.04304184]
[1725311221275,0.625518,2557.8,2557.5,3.12797]
[1725311221477,3.0,2558.1,2557.6,0.04313828]
[1725311221793,3.12781,2557.7,2557.1,6.6682]
[1725311221992,3.12781,2557.7,2556.2,3.92561242]
[1725311221993,3.12813,2557.5,2556.7,6.5344]
[1725311222217,0.312813,2557.4,2556.8,3.1288]
[1725311222391,3.12813,2557.5,2556.7,6.5344]
[1725311222392,3.12812,2557.5,2556.7,6.5344]
[1725311222579,0.312812,2557.4,2556.7,6.61262195]
[1725311222776,0.312812,2557.4,2556.8,3.12884]
[1725311222973,0.312812,2557.4,2556.8,6.25767]
[1725311223227,0.312812,2557.4,2557.0,3.12866]
[1725311223407,3.12805,2557.5,2556.9,3.12878]
[1725311223792,3.12805,2557.5,2556.7,6.5344]
[1725311224177,3.12805,2557.5,2556.8,3.12889]
[1725311224425,3.12818,2557.4,2556.7,6.5344]
[1725311224808,4.053642,2557.5,2556.7,9.66338]
[1725311225011,4.053642,2557.5,2556.9,3.12877]
[1725311226018,4.053642,2557.5,2556.7,9.66338]
[1725311226019,0.4053642,2557.4,2556.7,9.66338]
[1725311226221,0.4053642,2557.4,2556.7,9.66333]
[1725311226538,0.4053642,2557.4,2556.9,3.1287]
[1725311226700,3.12806,2557.5,2556.7,10.05453]
[1725311227220,6.25623,2557.5,2556.7,10.05453]
[1725311227423,0.925623,2557.5,2556.9,3.12876]
[1725311227625,4.053703,2557.5,2556.7,10.05453]
[1725311227825,4.053703,2557.5,2556.7,12.79227]
[1725311228280,4.053703,2557.5,2556.7,9.66333]
[1725311228481,0.4053703,2557.4,2556.7,9.66333]
[1725311228707,3.12808,2557.5,2556.8,3.12882]
[1725311229026,3.12818,2557.4,2556.7,9.66333]
[1725311229237,3.12818,2557.4,2556.7,12.79228]
[1725311229521,3.12818,2557.4,2556.7,9.66333]
[1725311229733,6.4477,2558.9,2556.9,6.74]
[1725311230024,3.12673,2558.6,2557.6,6.25571]
[1725311230231,3.12673,2558.6,2557.6,4.427421]
[1725311230232,3.12704,2558.4,2557.6,4.427421]
[1725311230729,3.12715,2558.3,2557.6,4.427421]
[1725311230936,3.12704,2558.4,2557.6,4.427411]
[1725311231225,3.439423,2558.6,2557.9,9.47625]
[1725311231226,3.12671,2558.6,2557.9,9.47625]
[1725311231523,3.12671,2558.6,2557.9,6.3488]
[1725311231524,3.12683,2558.5,2557.9,6.3488]
[1725311231730,3.12696,2558.4,2557.9,6.3488]
[1725311232116,3.12718,2558.3,2557.6,4.427481]
[1725311232319,3.12718,2558.3,2557.6,3.12791]
[1725311233088,3.1272,2558.2,2557.7,0.04508981]
[1725311233450,3.12749,2558.0,2557.7,0.04508981]
[1725311233626,3.12749,2558.0,2557.3,7.28]
[1725311233940,3.12749,2558.0,2557.3,10.40829]
[1725311234142,3.0,2558.1,2557.3,7.28]
[1725311234341,3.12678,2558.6,2557.7,6.5598]
[1725311234544,3.12695,2558.4,2557.7,6.5598]
[1725311234858,6.12709,2558.3,2557.8,0.05071739]
[1725311235360,3.0,2558.3,2557.8,0.05071739]
[1725311235510,3.0,2558.5,2557.8,3.17832739]
[1725311236063,3.0,2558.5,2557.8,6.30592739]
[1725311236362,3.0,2558.5,2557.9,3.12752]
[1725311236530,3.0,2558.5,2557.9,3.17765908]
[1725311236880,3.0,2558.5,2558.0,3.12743]
[1725311237220,3.0,2558.5,2558.1,0.049891]
[1725311237571,7.5403562,2558.5,2558.1,0.049891]
[1725311237865,7.5403562,2558.5,2557.8,3.1276]
[1725311238019,7.5403562,2558.5,2558.2,0.04970714]
[1725311238215,4.4135162,2558.5,2557.8,3.1276]
[1725311238465,3.12652,2558.8,2558.3,0.04957257]
[1725311238671,3.1268,2558.6,2558.0,3.12733]
[1725311238833,3.752129,2558.6,2558.4,0.04943801]
[1725311239021,3.752129,2558.6,2557.8,3.12758]
[1725311239221,3.752129,2558.6,2557.7,13.8398]
[1725311239222,3.12752,2558.0,2557.7,7.28]
[1725311239514,3.12726,2558.2,2557.5,3.12803]
[1725311239662,3.12726,2558.2,2557.4,9.5646]
[1725311239868,3.12756,2558.0,2557.2,10.40836]
[1725311240163,3.12776,2557.8,2557.2,10.40836]
[1725311240368,6.25554,2557.8,2557.2,10.40836]
[1725311240668,3.12753,2558.0,2557.2,10.40835]
[1725311240965,3.12751,2558.0,2557.4,3.1281]
[1725311241267,3.12764,2557.9,2557.2,10.40831]
[1725311241423,3.83265575,2558.0,2557.3,3.12822]
[1725311241944,3.12758,2557.9,2557.3,3.12822]
[1725311242147,0.69602358,2557.9,2557.3,3.12822]
[1725311242347,3.12757,2557.9,2557.3,3.12822]
[1725311242546,3.12778,2557.8,2557.2,10.40831]
[1725311242967,3.92394753,2558.2,2557.2,7.28]
[1725311243168,3.92394753,2558.2,2557.5,3.12798]
[1725311243169,3.0,2558.1,2557.5,3.12798]
[1725311243841,3.0,2558.1,2557.5,6.25595]
[1725311244183,3.0,2558.1,2557.5,3.12797]
[1725311244332,3.69239475,2558.1,2557.5,3.12797]
[1725311244534,3.69239475,2558.1,2557.6,3.12792]
[1725311244779,3.12651,2558.8,2557.6,3.12792]
[1725311244780,3.12662,2558.7,2558.0,3.12734]
[1725311244994,6.3967,2558.9,2558.1,3.12731]
[1725311245301,3.12679,2558.6,2558.0,3.12734]
[1725311245440,6.25359,2558.6,2558.0,3.12734]
[1725311245639,3.76619,2558.8,2558.0,3.12733]
[1725311245853,3.12691,2558.5,2557.8,6.25522]
[1725311246097,3.12691,2558.5,2557.9,3.12751]
[1725311246314,3.12691,2558.5,2557.8,3.1276]
[1725311247096,3.12691,2558.5,2557.9,3.12748]
[1725311247452,3.12691,2558.5,2557.8,3.1276]
[1725311247701,3.12691,2558.5,2557.9,3.12748]
[1725311247854,3.12691,2558.5,2557.9,3.17759798]
[1725311248665,3.12691,2558.5,2557.9,3.17765798]
[1725311248890,3.12691,2558.5,2557.9,0.05011798]
[1725311248891,3.12716,2558.3,2557.9,0.05011798]
[1725311249196,3.12709,2558.3,2557.7,10.4078]
[1725311249502,3.12709,2558.3,2558.0,0.04999747]
[1725311249802,4.81527189,2558.3,2557.7,3.1278]
[1725311249970,1.68818189,2558.3,2558.1,0.04987695]
[1725311250317,6.12708,2558.3,2557.8,3.12767]
[1725311250610,3.12722,2558.2,2557.6,3.12784]
[1725311250838,3.12722,2558.2,2557.5,0.3912]
[1725311250839,3.12753,2558.0,2557.9,0.05011798]
[1725311250957,3.12753,2558.0,2557.5,0.3912]
[1725311251155,3.12753,2558.0,2557.9,0.05011798]
[1725311251459,3.12753,2558.0,2557.5,0.3912]
[1725311251770,3.12753,2558.0,2557.4,10.40809]
[1725311251957,3.12753,2558.0,2557.6,0.0504796]
[1725311252157,3.12753,2558.0,2557.0,12.6312]
[1725311252158,3.128,2557.6,2557.0,10.40857]
[1725311252358,3.128,2557.6,2557.0,3.12857]
[1725311252758,3.55,2557.9,2556.8,9.75854]
[1725311252958,3.12825,2557.4,2556.8,9.75854]
[1725311253224,6.12786,2557.7,2557.0,3.12859]
[1725311253364,3.0,2557.7,2557.2,3.12839]
[1725311253557,3.12806,2557.5,2556.8,9.75852]
[1725311253793,3.12806,2557.5,2556.9,3.12877]
[1725311254059,4.70643419,2557.7,2557.1,3.12847]
[1725311254258,3.0,2557.7,2557.2,3.12833]
[1725311254502,3.12763,2557.9,2557.1,3.12847]
[1725311254503,6.12777,2557.8,2557.1,3.12847]
[1725311254672,3.0,2557.6,2557.1,3.12847]
[1725311254872,3.0,2557.6,2556.8,9.7586]
[1725311254873,3.1283,2557.3,2556.8,9.7586]
[1725311255103,3.12825,2557.4,2556.8,9.75858]
[1725311255977,3.1284,2557.3,2556.7,10.409]
[1725311256216,6.2568,2557.3,2556.7,10.409]
[1725311256363,3.1284,2557.3,2556.7,10.409]
[1725311256558,0.62565,2557.3,2556.5,9.75893]
[1725311256862,0.3,2557.6,2556.8,6.6297]
[1725311257059,9.89384,2557.9,2557.2,3.12833]
[1725311257263,13.02151,2557.9,2557.2,3.12833]
[1725311257564,3.12736,2558.1,2557.5,3.12797]
[1725311257762,3.12736,2558.1,2557.4,3.12815]
[1725311257763,3.12746,2558.0,2557.4,3.12815]
[1725311257990,3.12736,2558.1,2557.4,3.12815]
[1725311258216,3.12736,2558.1,2557.2,3.12835]
[1725311258217,3.344007,2558.0,2557.2,3.20657188]
[1725311258368,3.12765,2557.9,2557.3,3.12825]
[1725311259089,3.12769,2557.8,2557.2,3.12837]
[1725311259503,3.71446221,2557.9,2557.2,3.12837]
[1725311259504,3.71446221,2557.9,2557.4,3.12815]
[1725311259679,3.12765,2557.9,2557.4,3.12815]
[1725311259880,6.25532,2557.9,2557.2,3.12833]
[1725311260261,3.12765,2557.9,2557.2,6.25668]
[1725311260468,3.12765,2557.9,2557.2,3.12833]
[1725311260902,6.2553,2557.9,2557.2,3.12833]
[1725311261219,3.12765,2557.9,2557.2,3.12833]
[1725311261573,3.12765,2557.9,2557.1,6.8008]
[1725311261768,6.25479,2558.1,2557.1,7.547177]
[1725311261973,6.12744,2558.0,2557.2,3.20653146]
[1725311262259,3.12772,2557.8,2557.2,3.12833]
[1725311262445,3.12759,2557.9,2557.2,3.12833]
[1725311262959,3.12759,2557.9,2557.3,0.12943368]
[1725311263111,3.12736,2558.1,2557.4,3.12805]
[1725311263465,0.31271,2558.2,2557.5,0.05099447]
[1725311263666,3.12725,2558.2,2557.6,3.12784]
[1725311263956,3.12725,2558.2,2557.4,3.12811]
[1725311264155,3.12752,2558.0,2557.7,0.05075336]
[1725311264559,3.12752,2558.0,2557.4,3.12806]
[1725311264867,0.312725,2558.1,2557.8,0.05063282]
[1725311265008,3.12727,2558.2,2557.6,3.12791]
[1725311265206,3.12727,2558.2,2557.9,0.05051229]
[1725311265435,3.12727,2558.2,2557.6,3.12791]
[1725311265642,3.12727,2558.2,2558.0,0.05039177]
[1725311265835,6.12701,2558.4,2557.7,6.8008]
[1725311266048,6.12701,2558.4,2558.1,0.05027126]
[1725311266363,7.751526,2558.4,2558.2,0.05015076]
[1725311266571,7.751526,2558.4,2557.9,3.12749]
[1725311266722,7.751526,2558.4,2558.3,0.05003027]
[1725311266920,3.12709,2558.3,2557.6,3.12785]
[1725311267170,3.0,2558.2,2557.7,0.05075336]
[1725311267359,6.5646,2558.1,2557.7,0.05075336]
[1725311267565,6.12755,2558.0,2557.2,19.1765]
[1725311267867,3.12756,2557.9,2557.8,0.05063282]
[1725311268070,3.12756,2557.9,2557.3,3.12829]
[1725311268232,6.78401,2558.0,2557.2,10.06483]
[1725311268233,3.12769,2557.8,2557.2,10.06483]
[1725311268425,1.334861,2557.9,2557.2,10.06483]
[1725311268626,9.91151,2558.0,2557.6,3.12785]
[1725311268627,3.0,2558.0,2557.6,3.12785]
[1725311268853,3.0,2558.0,2557.5,3.12798]
[1725311269133,3.0,2558.0,2557.5,6.25597]
[1725311269328,3.0,2558.0,2557.5,3.12798]
[1725311269725,3.0,2558.0,2557.6,3.12792]
[1725311270876,3.0,2558.0,2557.5,3.12798]
[1725311271477,3.0,2558.1,2557.6,3.12786]
[1725311271965,6.9997,2558.5,2557.3,0.3912]
[1725311272201,3.12677,2558.6,2558.0,3.12736]
[1725311272678,3.12677,2558.6,2558.1,3.12731]
[1725311272967,13.25281,2558.8,2558.2,3.12719]
[1725311273168,4.139234,2558.7,2558.2,3.12719]
[1725311273662,3.0,2558.6,2558.2,3.12719]
[1725311274043,4.012624,2558.7,2558.2,3.12719]
[1725311274235,1.1138854,2558.6,2558.2,3.12719]
[1725311275067,1.1138854,2558.6,2558.2,3.12712]
[1725311275270,3.0,2558.7,2558.4,3.12689]
[1725311276061,3.0,2558.7,2558.2,3.12712]
[1725311276260,3.0,2558.7,2558.3,3.12706]
[1725311276261,4.625247,2558.7,2558.3,3.12706]
[1725311276739,4.625247,2558.7,2558.3,6.25405]
[1725311277081,3.0,2559.0,2558.2,0.0781763]
[1725311277343,3.12611,2559.1,2558.5,3.12674]
[1725311277498,6.9997,2559.2,2558.6,3.12661]
[1725311277815,3.1261,2559.1,2558.6,0.05855501]
[1725311278028,4.451269,2559.1,2558.6,3.18525501]
[1725311278224,6.9997,2559.2,2558.7,3.12657]
[1725311278377,10.12576,2559.2,2558.8,0.05826593]
[1725311278583,6.1261,2559.1,2558.6,3.12668]
[1725311278828,6.1261,2559.1,2558.9,0.05783433]
[1725311279033,3.0,2559.1,2558.7,3.12656]
[1725311279328,4.325165,2559.2,2558.8,0.05797885]
[1725311279485,6.12601,2559.2,2558.8,0.05797885]
[1725311279887,6.12601,2559.2,2558.6,3.12667]
[1725311280189,6.12601,2559.2,2558.7,3.12658]
[1725311280382,3.0,2559.2,2558.9,3.12632]
[1725311280684,6.9997,2560.2,2559.6,3.12545]
[1725311280881,3.12444,2560.5,2559.8,3.12516]
[1725311281079,3.12459,2560.4,2559.7,3.18821865]
[1725311281322,3.12459,2560.4,2559.9,0.06261773]
[1725311281323,0.624903,2560.3,2559.9,0.06261773]
[1725311281531,0.624903,2560.3,2559.8,0.06277819]
[1725311281679,0.624903,2560.3,2560.0,0.06245729]
[1725311281882,0.3749423,2560.2,2559.9,0.06261773]
[1725311282075,6.9997,2561.1,2560.1,0.06229686]
[1725311282325,6.9997,2561.1,2559.8,7.0162]
[1725311282326,13.24714,2561.1,2560.3,3.12454]
[1725311282633,0.41679462,2561.8,2560.0,7.34245729]
[1725311282634,0.74230725,2561.0,2560.7,3.12408]
[1725311282779,3.12346,2561.3,2560.5,3.2023819]
[1725311282979,6.24698,2561.3,2560.6,0.0614949]
[1725311283225,0.797316,2561.2,2560.6,0.0614949]
[1725311283392,3.12385,2561.0,2560.6,0.0614949]
[1725311283590,0.797316,2561.2,2560.3,7.28]
[1725311283831,3.12408,2560.8,2560.4,0.06181565]
[1725311284132,3.12386,2561.0,2560.4,0.06181565]
[1725311284634,3.12403,2560.8,2560.4,0.06181565]
[1725311285785,3.12436,2560.6,2560.4,0.06181565]
[1725311289512,0.6435883,2561.0,2560.3,10.4046]
[1725311289684,3.12377,2561.0,2560.9,0.07315412]
[1725311289890,3.12377,2561.0,2560.3,7.28]
[1725311290117,3.12392,2560.9,2560.3,7.28]
[1725311290988,3.12421,2560.7,2560.3,7.28]
[1725311291234,7.9804843,2561.0,2559.9,7.28]
[1725311291436,3.12555,2559.6,2559.3,12.24]
[1725311291591,6.12509,2560.0,2559.2,3.12594]
[1725311292116,6.12508,2560.0,2559.4,3.12572]
[1725311292429,3.0,2560.0,2559.2,3.12589]
[1725311292728,6.24964,2560.2,2559.5,3.12558]
[1725311292951,6.24964,2560.2,2559.4,3.12562]
[1725311293094,6.24964,2560.2,2559.6,0.06612393]
[1725311293095,3.0,2560.1,2559.6,0.06612393]
[1725311293428,0.70245,2560.3,2559.7,0.06594339]
[1725311293587,3.12479,2560.2,2559.7,0.06594339]
[1725311294026,3.12456,2560.4,2559.7,0.06594339]
[1725311294225,3.0,2560.3,2559.7,3.26934607]
[1725311294531,3.0,2560.3,2559.7,6.39463607]
[1725311294709,3.12456,2560.4,2559.7,0.14406607]
[1725311294905,0.312456,2560.3,2559.7,0.06594339]
[1725311295112,0.312456,2560.3,2559.7,0.14406486]
[1725311295438,0.312456,2560.3,2559.7,0.06594339]
[1725311295593,3.12482,2560.2,2559.7,0.06594339]
[1725311295931,0.6561846,2560.2,2559.7,0.06594339]
[1725311296735,3.7809546,2560.2,2559.7,0.06594339]
[1725311297637,3.12477,2560.2,2559.7,0.06594339]
[1725311297947,3.12457,2560.4,2559.7,3.26942993]
[1725311298235,3.12457,2560.4,2559.8,0.0781207]
[1725311298440,6.12428,2560.6,2559.8,0.14433678]
[1725311298735,3.12404,2560.8,2560.1,3.12476]
[1725311298933,3.12404,2560.8,2560.2,7.0657]
[1725311299135,4.0798243,2561.0,2560.2,7.0657]
[1725311299136,4.0798243,2561.0,2560.3,0.07810875]
[1725311299339,3.12397,2560.9,2560.2,10.25650708]
[1725311299640,3.12397,2560.9,2560.3,3.18323811]
[1725311299843,7.0245,2561.5,2560.3,3.18323811]
[1725311299844,3.12372,2561.1,2560.4,3.12443]
[1725311299999,3.12372,2561.1,2560.4,3.19020619]
[1725311300000,6.24748,2561.1,2560.4,3.19020619]
[1725311300192,3.12378,2561.0,2560.4,3.19020619]
[1725311300435,3.12372,2561.1,2560.4,3.19020619]
[1725311300738,6.24745,2561.1,2560.4,3.19020619]
[1725311300940,3.12355,2561.2,2560.5,0.07810259]
[1725311301095,3.12345,2561.3,2560.6,3.12425]
[1725311301296,3.12329,2561.4,2560.8,7.0657]
[1725311301519,3.12329,2561.4,2560.8,7.1437879]
[1725311301731,3.12321,2561.5,2560.9,0.07346738]
[1725311302415,3.12318,2561.5,2560.9,0.07346738]
[1725311302599,3.12329,2561.4,2560.9,0.07346738]
[1725311302822,3.12318,2561.5,2560.9,0.07346738]
[1725311303141,3.12318,2561.5,2560.9,3.19735738]
[1725311303338,3.0,2561.4,2561.0,0.07808511]
[1725311303642,3.0,2561.4,2561.1,0.07305515]
[1725311304013,6.12331,2561.4,2560.8,7.0657]
[1725311304225,3.0,2561.4,2560.9,0.07346738]
[1725311304651,7.0245,2561.4,2560.9,0.07346738]
[1725311304927,3.12319,2561.5,2560.6,0.07809369]
[1725311305135,6.12329,2561.4,2560.8,3.12401]
[1725311305463,6.12329,2561.4,2560.6,1.55178369]
[1725311305464,3.0,2561.4,2560.6,0.3912]
[1725311305613,3.12399,2560.9,2560.6,0.0852396]
[1725311305813,3.12412,2560.8,2560.6,0.0852396]
[1725311306202,3.12412,2560.8,2560.2,3.12472]
[1725311306532,6.24825,2560.8,2560.3,0.08596131]
[1725311306740,0.624825,2560.7,2560.3,0.08596131]
[1725311306896,3.12412,2560.8,2560.1,7.28]
[1725311307093,3.12415,2560.7,2560.1,10.40486]
[1725311307298,3.12415,2560.7,2560.2,0.3912]
[1725311307613,3.12438,2560.6,2560.0,6.9597]
[1725311307806,3.12438,2560.6,2560.0,7.04513258]
[1725311308004,3.12434,2560.6,2560.0,7.04513258]
[1725311308452,3.12447,2560.5,2560.0,7.04513258]
[1725311309060,6.24871,2560.6,2560.0,10.17006258]
[1725311309232,3.12451,2560.5,2560.0,7.04513258]